[Event "Titled Tuesday Blitz May 23 Late 2023"]
[White "Alahakoon, Isuru"]
[Black "Rottenwohrer Suarez, Juan"]
[WhiteFideId "9900993"]
[BlackFideId "32068182"]
[WhiteElo "1953"]
[BlackElo "2174"]
[Result "0-1"]
[Round "07"]
[TimeControl "180+2"]
[Date "2023.05.23"]
[WhiteClock "0:00:02"]
[BlackClock "0:00:04"]

1. Nf3 {[%clk 0:03:00]}  Nf6 {[%clk 0:02:58]} 2. d4 {[%clk 0:02:59]}  g6 {[%clk 0:02:56]} 3. Bg5 {[%clk 0:02:59]}  Bg7 {[%clk 0:02:56]} 4. Nbd2 {[%clk 0:02:59]}  d5 {[%clk 0:02:56]} 5. e3 {[%clk 0:02:58]}  Nbd7 {[%clk 0:02:53]} 6. Bd3 {[%clk 0:02:58]}  c5 {[%clk 0:02:51]} 7. c3 {[%clk 0:02:57]}  b6 {[%clk 0:02:50]} 8. O-O {[%clk 0:02:56]}  O-O {[%clk 0:02:50]} 9. a4 {[%clk 0:02:53]}  a5 {[%clk 0:02:50]} 10. Re1 {[%clk 0:02:26]}  Ba6 {[%clk 0:02:49]} 11. Bc2 {[%clk 0:02:21]}  Qc7 {[%clk 0:02:39]} 12. Bf4 {[%clk 0:02:10]}  Qc8 {[%clk 0:02:36]} 13. h3 {[%clk 0:02:09]}  b5 {[%clk 0:02:25]} 14. axb5 {[%clk 0:02:08]}  Bxb5 {[%clk 0:02:26]} 15. dxc5 {[%clk 0:02:05]}  Nxc5 {[%clk 0:02:23]} 16. Nb3 {[%clk 0:02:04]}  Nxb3 {[%clk 0:01:43]} 17. Bxb3 {[%clk 0:02:03]}  e6 {[%clk 0:01:44]} 18. Nd4 {[%clk 0:01:51]}  Bc4 {[%clk 0:01:34]} 19. Bxc4 {[%clk 0:01:50]}  Qxc4 {[%clk 0:01:33]} 20. Qa4 {[%clk 0:01:36]}  Qa6 {[%clk 0:01:05]} 21. b4 {[%clk 0:01:06]}  Qc4 {[%clk 0:01:04]} 22. bxa5 {[%clk 0:00:57]}  Qxc3 {[%clk 0:01:04]} 23. Rec1 {[%clk 0:00:55]}  Qd3 {[%clk 0:01:02]} 24. Ra3 {[%clk 0:00:41]}  Qd2 {[%clk 0:01:02]} 25. Nb3 {[%clk 0:00:41]}  Qe2 {[%clk 0:00:52]} 26. Ra2 {[%clk 0:00:38]}  Qa6 {[%clk 0:00:42]} 27. Nc5 {[%clk 0:00:37]}  Qa7 {[%clk 0:00:42]} 28. a6 {[%clk 0:00:33]}  Rfc8 {[%clk 0:00:42]} 29. Rac2 {[%clk 0:00:31]}  Bf8 {[%clk 0:00:38]} 30. Nd7 {[%clk 0:00:19]}  Qxd7 {[%clk 0:00:26]} 31. Qxd7 {[%clk 0:00:17]}  Rxc2 {[%clk 0:00:27]} 32. Qb7 {[%clk 0:00:15]}  Rxc1+ {[%clk 0:00:24]} 33. Kh2 {[%clk 0:00:16]}  Rcc8 {[%clk 0:00:24]} 34. a7 {[%clk 0:00:15]}  Ne4 {[%clk 0:00:24]} 35. Bb8 {[%clk 0:00:15]}  Bd6+ {[%clk 0:00:20]} 36. Bxd6 {[%clk 0:00:13]}  Nxd6 {[%clk 0:00:20]} 37. Qb6 {[%clk 0:00:12]}  Nc4 {[%clk 0:00:16]} 38. Qb7 {[%clk 0:00:11]}  Na5 {[%clk 0:00:15]} 39. Qb6 {[%clk 0:00:10]}  Nc6 {[%clk 0:00:16]} 40. h4 {[%clk 0:00:05]}  h5 {[%clk 0:00:13]} 41. f3 {[%clk 0:00:04]}  Nxa7 {[%clk 0:00:12]} 42. g4 {[%clk 0:00:04]}  hxg4 {[%clk 0:00:12]} 43. fxg4 {[%clk 0:00:03]}  Nc6 {[%clk 0:00:12]} 44. h5 {[%clk 0:00:03]}  gxh5 {[%clk 0:00:09]} 45. gxh5 {[%clk 0:00:04]}  Ne7 {[%clk 0:00:09]} 46. Qd4 {[%clk 0:00:02]}  Nf5 {[%clk 0:00:08]} 47. Qg4+ {[%clk 0:00:02]}  Kh7 {[%clk 0:00:08]} 48. Qg5 {[%clk 0:00:02]}  Rg8 {[%clk 0:00:03]} 49. Qf6 {[%clk 0:00:02]}  Ra2+ {[%clk 0:00:04]} 50. Kh3 {[%clk 0:00:02]}  Rg3# {[%clk 0:00:04]} 0-1


[Site "https://www.chess.com"]

[Event "Titled Tuesday Blitz May 23 Late 2023"]
[White "Kielinkei"]
[Black "Rose, Felix"]
[BlackFideId "5105722"]
[WhiteElo "2459"]
[BlackElo "2039"]
[Result "1-0"]
[Round "07"]
[TimeControl "180+2"]
[Date "2023.05.23"]
[WhiteClock "0:00:58"]
[BlackClock "0:00:19"]

1. e4 {[%clk 0:03:00]}  c5 {[%clk 0:02:58]} 2. a3 {[%clk 0:03:00]}  g6 {[%clk 0:02:57]} 3. Nc3 {[%clk 0:03:00]}  Bg7 {[%clk 0:02:57]} 4. Bc4 {[%clk 0:03:01]}  e6 {[%clk 0:02:57]} 5. d3 {[%clk 0:02:59]}  Ne7 {[%clk 0:02:57]} 6. Ba2 {[%clk 0:02:59]}  O-O {[%clk 0:02:57]} 7. h4 {[%clk 0:03:00]}  d5 {[%clk 0:02:56]} 8. h5 {[%clk 0:02:58]}  Nbc6 {[%clk 0:02:56]} 9. Nge2 {[%clk 0:02:33]}  Nd4 {[%clk 0:02:55]} 10. Nxd4 {[%clk 0:02:24]}  cxd4 {[%clk 0:02:56]} 11. Ne2 {[%clk 0:02:24]}  dxe4 {[%clk 0:02:52]} 12. dxe4 {[%clk 0:02:24]}  Nc6 {[%clk 0:02:50]} 13. hxg6 {[%clk 0:02:19]}  hxg6 {[%clk 0:02:40]} 14. Nf4 {[%clk 0:02:14]}  b5 {[%clk 0:02:21]} 15. Qf3 {[%clk 0:02:08]}  Ne5 {[%clk 0:02:15]} 16. Qh3 {[%clk 0:02:03]}  Re8 {[%clk 0:02:11]} 17. Bd2 {[%clk 0:01:57]}  a5 {[%clk 0:02:05]} 18. Nd3 {[%clk 0:01:40]}  Nc4 {[%clk 0:01:29]} 19. Qh7+ {[%clk 0:01:29]}  Kf8 {[%clk 0:01:30]} 20. Bh6 {[%clk 0:01:30]}  Bxh6 {[%clk 0:01:29]} 21. Qxh6+ {[%clk 0:01:26]}  Ke7 {[%clk 0:01:30]} 22. Qg5+ {[%clk 0:01:22]}  Kf8 {[%clk 0:00:27]} 23. Rh8+ {[%clk 0:01:20]}  Kg7 {[%clk 0:00:27]} 24. Qxd8 {[%clk 0:01:17]}  Rxh8 {[%clk 0:00:25]} 25. Qxd4+ {[%clk 0:01:15]}  e5 {[%clk 0:00:25]} 26. Qd5 {[%clk 0:01:09]}  Be6 {[%clk 0:00:24]} 27. Qxb5 {[%clk 0:01:03]}  Rh1+ {[%clk 0:00:24]} 28. Ke2 {[%clk 0:01:03]}  Rxa1 {[%clk 0:00:24]} 29. Bxc4 {[%clk 0:01:03]}  Bxc4 {[%clk 0:00:20]} 30. Qxc4 {[%clk 0:01:04]}  Re8 {[%clk 0:00:21]} 31. Qd5 {[%clk 0:01:01]}  Rb1 {[%clk 0:00:19]} 32. Nxe5 {[%clk 0:01:00]}  Rxb2 {[%clk 0:00:20]} 33. Qxf7+ {[%clk 0:00:59]}  Kh6 {[%clk 0:00:19]} 34. Qxe8 {[%clk 0:00:58]} 1-0


[Site "https://www.chess.com"]

[Event "Titled Tuesday Blitz May 23 Late 2023"]
[White "Dragomirescu, Robin-Alexandru"]
[Black "Hernandez Leon, Alberto"]
[WhiteFideId "1213849"]
[BlackFideId "2272555"]
[WhiteElo "2356"]
[BlackElo "2239"]
[Result "1-0"]
[Round "07"]
[TimeControl "180+2"]
[Date "2023.05.23"]
[WhiteClock "0:00:57"]
[BlackClock "0:00:00"]

1. b3 {[%clk 0:03:00]}  d5 {[%clk 0:02:57]} 2. Bb2 {[%clk 0:03:01]}  Bg4 {[%clk 0:02:57]} 3. f3 {[%clk 0:03:01]}  Bh5 {[%clk 0:02:57]} 4. Nh3 {[%clk 0:03:02]}  f6 {[%clk 0:02:53]} 5. Nf4 {[%clk 0:03:01]}  Bf7 {[%clk 0:02:54]} 6. d4 {[%clk 0:03:01]}  c5 {[%clk 0:02:52]} 7. e4 {[%clk 0:03:01]}  dxe4 {[%clk 0:02:27]} 8. d5 {[%clk 0:02:59]}  a6 {[%clk 0:02:20]} 9. fxe4 {[%clk 0:02:55]}  g5 {[%clk 0:02:15]} 10. Ne2 {[%clk 0:02:37]}  Nd7 {[%clk 0:02:06]} 11. Ng3 {[%clk 0:02:34]}  Nh6 {[%clk 0:02:04]} 12. Nd2 {[%clk 0:02:30]}  Bg7 {[%clk 0:01:50]} 13. Be2 {[%clk 0:02:29]}  O-O {[%clk 0:01:43]} 14. O-O {[%clk 0:02:29]}  Bg6 {[%clk 0:01:36]} 15. c4 {[%clk 0:02:24]}  Nf7 {[%clk 0:01:35]} 16. Nf5 {[%clk 0:02:22]}  Nde5 {[%clk 0:01:10]} 17. h4 {[%clk 0:02:22]}  h6 {[%clk 0:01:01]} 18. h5 {[%clk 0:02:06]}  Bxf5 {[%clk 0:01:00]} 19. Rxf5 {[%clk 0:02:05]}  Nd6 {[%clk 0:01:00]} 20. Rf2 {[%clk 0:01:57]}  f5 {[%clk 0:00:56]} 21. exf5 {[%clk 0:01:53]}  Nxf5 {[%clk 0:00:41]} 22. Ne4 {[%clk 0:01:41]}  Ne3 {[%clk 0:00:35]} 23. Qd2 {[%clk 0:01:40]}  Rxf2 {[%clk 0:00:34]} 24. Nxf2 {[%clk 0:01:40]}  Nf5 {[%clk 0:00:23]} 25. Rf1 {[%clk 0:01:23]}  Ng3 {[%clk 0:00:18]} 26. Re1 {[%clk 0:01:23]}  Qd6 {[%clk 0:00:18]} 27. Qe3 {[%clk 0:01:08]}  Nf5 {[%clk 0:00:15]} 28. Qh3 {[%clk 0:01:08]}  Nd4 {[%clk 0:00:10]} 29. Bxd4 {[%clk 0:01:05]}  cxd4 {[%clk 0:00:11]} 30. Ne4 {[%clk 0:01:05]}  Qd7 {[%clk 0:00:10]} 31. Qxd7 {[%clk 0:01:04]}  Nxd7 {[%clk 0:00:11]} 32. Bg4 {[%clk 0:01:04]}  Nf6 {[%clk 0:00:10]} 33. Nxf6+ {[%clk 0:00:57]}  Bxf6 {[%clk 0:00:11]} 34. c5 {[%clk 0:00:57]}  Rd8 {[%clk 0:00:10]} 35. c6 {[%clk 0:00:57]}  bxc6 {[%clk 0:00:04]} 36. dxc6 {[%clk 0:00:58]}  e6 {[%clk 0:00:00]} 37. c7 {[%clk 0:00:57]} 1-0


[Site "https://www.chess.com"]

[Event "Titled Tuesday Blitz May 23 Late 2023"]
[White "Petrovic, Aleksa"]
[Black "Lalanne, Pablo"]
[WhiteFideId "967629"]
[BlackFideId "112151"]
[WhiteElo "2309"]
[BlackElo "2120"]
[Result "0-1"]
[Round "07"]
[TimeControl "180+2"]
[Date "2023.05.23"]
[WhiteClock "0:00:03"]
[BlackClock "0:00:17"]

1. e4 {[%clk 0:03:00]}  c5 {[%clk 0:02:59]} 2. Nf3 {[%clk 0:02:59]}  d6 {[%clk 0:03:00]} 3. d4 {[%clk 0:02:57]}  cxd4 {[%clk 0:03:00]} 4. Nxd4 {[%clk 0:02:57]}  Nf6 {[%clk 0:03:01]} 5. Nc3 {[%clk 0:02:55]}  a6 {[%clk 0:03:01]} 6. Bg5 {[%clk 0:02:55]}  e6 {[%clk 0:03:02]} 7. f4 {[%clk 0:02:55]}  Nbd7 {[%clk 0:03:02]} 8. Qf3 {[%clk 0:02:54]}  Qc7 {[%clk 0:03:02]} 9. O-O-O {[%clk 0:02:54]}  b5 {[%clk 0:03:02]} 10. Bd3 {[%clk 0:02:52]}  Bb7 {[%clk 0:03:02]} 11. Qh3 {[%clk 0:02:48]}  b4 {[%clk 0:02:40]} 12. Nxe6 {[%clk 0:02:47]}  fxe6 {[%clk 0:02:37]} 13. Qxe6+ {[%clk 0:02:47]}  Be7 {[%clk 0:02:27]} 14. Nd5 {[%clk 0:02:35]}  Bxd5 {[%clk 0:02:21]} 15. exd5 {[%clk 0:02:35]}  Nc5 {[%clk 0:02:18]} 16. Qe2 {[%clk 0:02:35]}  Nxd3+ {[%clk 0:02:11]} 17. Rxd3 {[%clk 0:02:36]}  O-O {[%clk 0:02:05]} 18. Rh3 {[%clk 0:02:24]}  Rac8 {[%clk 0:01:49]} 19. Qd3 {[%clk 0:02:00]}  g6 {[%clk 0:01:37]} 20. f5 {[%clk 0:01:55]}  Qc4 {[%clk 0:01:26]} 21. Qxc4 {[%clk 0:01:31]}  Rxc4 {[%clk 0:01:24]} 22. fxg6 {[%clk 0:01:29]}  hxg6 {[%clk 0:01:23]} 23. Re1 {[%clk 0:01:28]}  Re4 {[%clk 0:00:55]} 24. Rd1 {[%clk 0:01:05]}  Nd7 {[%clk 0:00:47]} 25. Bxe7 {[%clk 0:01:00]}  Rxe7 {[%clk 0:00:48]} 26. Rh4 {[%clk 0:00:58]}  a5 {[%clk 0:00:44]} 27. Rg4 {[%clk 0:00:48]}  Kg7 {[%clk 0:00:41]} 28. h4 {[%clk 0:00:34]}  Re5 {[%clk 0:00:31]} 29. Rc4 {[%clk 0:00:22]}  Nc5 {[%clk 0:00:27]} 30. c3 {[%clk 0:00:12]}  bxc3 {[%clk 0:00:24]} 31. Rxc3 {[%clk 0:00:13]}  Rf2 {[%clk 0:00:23]} 32. Rd2 {[%clk 0:00:13]}  Re1+ {[%clk 0:00:20]} 33. Kc2 {[%clk 0:00:10]}  Rxd2+ {[%clk 0:00:19]} 34. Kxd2 {[%clk 0:00:11]}  Rg1 {[%clk 0:00:19]} 35. Ra3 {[%clk 0:00:05]}  Rxg2+ {[%clk 0:00:18]} 36. Ke3 {[%clk 0:00:06]}  a4 {[%clk 0:00:17]} 37. b4 {[%clk 0:00:05]}  Rg3+ {[%clk 0:00:17]} 38. Ke2 {[%clk 0:00:02]}  Rxa3 {[%clk 0:00:16]} 39. bxc5 {[%clk 0:00:03]}  dxc5 {[%clk 0:00:17]} 40. d6 {[%clk 0:00:03]}  Kf7 {[%clk 0:00:17]} 0-1


[Site "https://www.chess.com"]

[Event "Titled Tuesday Blitz May 23 Late 2023"]
[White "Balla, Tamas-Kristof"]
[Black "Della Corte, Alessandro"]
[WhiteFideId "1208497"]
[BlackFideId "813540"]
[WhiteElo "2334"]
[BlackElo "2205"]
[Result "1-0"]
[Round "07"]
[TimeControl "180+2"]
[Date "2023.05.23"]
[WhiteClock "0:00:20"]
[BlackClock "0:00:03"]

1. f4 {[%clk 0:03:00]}  f5 {[%clk 0:02:58]} 2. b3 {[%clk 0:02:59]}  b6 {[%clk 0:02:57]} 3. Bb2 {[%clk 0:02:59]}  Bb7 {[%clk 0:02:58]} 4. e3 {[%clk 0:02:59]}  Nf6 {[%clk 0:02:58]} 5. Nf3 {[%clk 0:02:59]}  e6 {[%clk 0:02:58]} 6. g3 {[%clk 0:02:59]}  Be7 {[%clk 0:02:56]} 7. Bg2 {[%clk 0:02:58]}  O-O {[%clk 0:02:56]} 8. O-O {[%clk 0:02:58]}  d6 {[%clk 0:02:53]} 9. Qe2 {[%clk 0:02:58]}  Nbd7 {[%clk 0:02:53]} 10. Ng5 {[%clk 0:02:57]}  Bxg2 {[%clk 0:02:51]} 11. Qxg2 {[%clk 0:02:56]}  Nc5 {[%clk 0:02:43]} 12. b4 {[%clk 0:02:53]}  h6 {[%clk 0:02:43]} 13. Nf3 {[%clk 0:02:36]}  Na4 {[%clk 0:02:39]} 14. Bc1 {[%clk 0:02:36]}  Qd7 {[%clk 0:02:23]} 15. d3 {[%clk 0:02:32]}  c5 {[%clk 0:02:18]} 16. a3 {[%clk 0:02:30]}  a5 {[%clk 0:02:17]} 17. bxc5 {[%clk 0:02:25]}  bxc5 {[%clk 0:02:12]} 18. Nbd2 {[%clk 0:02:24]}  Rab8 {[%clk 0:02:06]} 19. Nc4 {[%clk 0:02:23]}  Qc7 {[%clk 0:01:59]} 20. Bd2 {[%clk 0:02:19]}  Rb5 {[%clk 0:01:56]} 21. Rfb1 {[%clk 0:02:10]}  Rfb8 {[%clk 0:01:55]} 22. Qf1 {[%clk 0:02:10]}  Nd5 {[%clk 0:01:48]} 23. Qe1 {[%clk 0:02:05]}  Bf6 {[%clk 0:01:44]} 24. Rxb5 {[%clk 0:02:01]}  Rxb5 {[%clk 0:01:45]} 25. Rb1 {[%clk 0:01:59]}  Rxb1 {[%clk 0:01:33]} 26. Qxb1 {[%clk 0:02:00]}  Bc3 {[%clk 0:01:30]} 27. e4 {[%clk 0:01:42]}  fxe4 {[%clk 0:01:24]} 28. dxe4 {[%clk 0:01:42]}  Bxd2 {[%clk 0:01:10]} 29. exd5 {[%clk 0:01:35]}  Nc3 {[%clk 0:00:51]} 30. Qf1 {[%clk 0:01:29]}  exd5 {[%clk 0:00:41]} 31. Ncxd2 {[%clk 0:01:29]}  d4 {[%clk 0:00:40]} 32. Nb1 {[%clk 0:01:21]}  d5 {[%clk 0:00:28]} 33. Nxc3 {[%clk 0:01:19]}  dxc3 {[%clk 0:00:28]} 34. Qd3 {[%clk 0:01:19]}  d4 {[%clk 0:00:27]} 35. Ne5 {[%clk 0:01:19]}  Qb7 {[%clk 0:00:24]} 36. h4 {[%clk 0:00:56]}  h5 {[%clk 0:00:19]} 37. a4 {[%clk 0:00:54]}  Qb1+ {[%clk 0:00:17]} 38. Kg2 {[%clk 0:00:52]}  Qe1 {[%clk 0:00:17]} 39. Qc4+ {[%clk 0:00:49]}  Kh7 {[%clk 0:00:17]} 40. Qd3+ {[%clk 0:00:44]}  Kg8 {[%clk 0:00:16]} 41. Nf3 {[%clk 0:00:44]}  Qe6 {[%clk 0:00:14]} 42. Ng5 {[%clk 0:00:41]}  Qe1 {[%clk 0:00:10]} 43. Qh7+ {[%clk 0:00:38]}  Kf8 {[%clk 0:00:10]} 44. Qh8+ {[%clk 0:00:38]}  Ke7 {[%clk 0:00:10]} 45. Qxg7+ {[%clk 0:00:39]}  Kd6 {[%clk 0:00:10]} 46. Qg6+ {[%clk 0:00:38]}  Kd5 {[%clk 0:00:10]} 47. Qf7+ {[%clk 0:00:36]}  Kc6 {[%clk 0:00:10]} 48. Qg6+ {[%clk 0:00:32]}  Kb7 {[%clk 0:00:08]} 49. Qe4+ {[%clk 0:00:21]}  Qxe4+ {[%clk 0:00:08]} 50. Nxe4 {[%clk 0:00:21]}  d3 {[%clk 0:00:09]} 51. Nxc3 {[%clk 0:00:20]}  dxc2 {[%clk 0:00:03]} 52. Ne2 {[%clk 0:00:20]} 1-0


[Site "https://www.chess.com"]

[Event "Titled Tuesday Blitz May 23 Late 2023"]
[White "Parizek, Vojtech"]
[Black "Senft, Sean"]
[WhiteFideId "360996"]
[BlackFideId "2044960"]
[WhiteElo "2115"]
[BlackElo "1989"]
[Result "0-1"]
[Round "07"]
[TimeControl "180+2"]
[Date "2023.05.23"]
[WhiteClock "0:01:09"]
[BlackClock "0:02:01"]

1. e4 {[%clk 0:03:00]}  c5 {[%clk 0:03:00]} 2. Nf3 {[%clk 0:03:00]}  d6 {[%clk 0:03:00]} 3. d4 {[%clk 0:03:01]}  cxd4 {[%clk 0:03:01]} 4. Nxd4 {[%clk 0:03:01]}  Nf6 {[%clk 0:03:02]} 5. Nc3 {[%clk 0:03:01]}  a6 {[%clk 0:03:03]} 6. Bg5 {[%clk 0:03:01]}  e6 {[%clk 0:03:03]} 7. f4 {[%clk 0:03:02]}  Qb6 {[%clk 0:03:04]} 8. Qd3 {[%clk 0:03:01]}  Nc6 {[%clk 0:03:05]} 9. Nxc6 {[%clk 0:02:56]}  bxc6 {[%clk 0:03:05]} 10. O-O-O {[%clk 0:02:31]}  Bd7 {[%clk 0:03:05]} 11. e5 {[%clk 0:02:23]}  Nd5 {[%clk 0:03:04]} 12. Ne4 {[%clk 0:02:21]}  dxe5 {[%clk 0:03:03]} 13. fxe5 {[%clk 0:02:22]}  Rb8 {[%clk 0:03:01]} 14. b3 {[%clk 0:02:06]}  Ba3+ {[%clk 0:03:00]} 15. Kb1 {[%clk 0:02:06]}  O-O {[%clk 0:02:56]} 16. Qh3 {[%clk 0:01:55]}  Qa5 {[%clk 0:02:36]} 17. Bd3 {[%clk 0:01:50]}  g6 {[%clk 0:02:15]} 18. c4 {[%clk 0:01:34]}  Nc3+ {[%clk 0:02:10]} 19. Nxc3 {[%clk 0:01:13]}  Qxc3 {[%clk 0:02:10]} 20. Bxg6 {[%clk 0:01:09]}  Qb2# {[%clk 0:02:01]} 0-1


[Site "https://www.chess.com"]

[Event "Titled Tuesday Blitz May 23 Late 2023"]
[White "Shapiro, Viktor"]
[Black "kiwibobo"]
[WhiteFideId "4175700"]
[WhiteElo "2152"]
[BlackElo "2196"]
[Result "1-0"]
[Round "07"]
[TimeControl "180+2"]
[Date "2023.05.23"]
[WhiteClock "0:00:51"]
[BlackClock "0:00:00"]

1. c4 {[%clk 0:03:00]}  Nf6 {[%clk 0:02:58]} 2. Nc3 {[%clk 0:03:00]}  d5 {[%clk 0:02:58]} 3. cxd5 {[%clk 0:03:00]}  Nxd5 {[%clk 0:02:59]} 4. Qb3 {[%clk 0:03:01]}  Nb6 {[%clk 0:02:50]} 5. Nf3 {[%clk 0:03:00]}  Nc6 {[%clk 0:02:38]} 6. d4 {[%clk 0:02:59]}  Nxd4 {[%clk 0:02:29]} 7. Nxd4 {[%clk 0:02:59]}  Qxd4 {[%clk 0:02:30]} 8. Nb5 {[%clk 0:02:59]}  Qe5 {[%clk 0:01:26]} 9. f4 {[%clk 0:02:57]}  Qc5 {[%clk 0:01:22]} 10. Be3 {[%clk 0:02:57]}  Qc6 {[%clk 0:01:18]} 11. Rc1 {[%clk 0:02:56]}  Be6 {[%clk 0:01:09]} 12. Nxc7+ {[%clk 0:02:32]}  Qxc7 {[%clk 0:01:03]} 13. Rxc7 {[%clk 0:02:31]}  Bxb3 {[%clk 0:01:03]} 14. axb3 {[%clk 0:02:32]}  Nd5 {[%clk 0:00:59]} 15. Rc3 {[%clk 0:01:55]}  Nxc3 {[%clk 0:00:57]} 16. bxc3 {[%clk 0:01:56]}  e6 {[%clk 0:00:54]} 17. Bd4 {[%clk 0:01:54]}  a5 {[%clk 0:00:51]} 18. e4 {[%clk 0:01:52]}  f6 {[%clk 0:00:51]} 19. Bb5+ {[%clk 0:01:52]}  Kf7 {[%clk 0:00:50]} 20. Ke2 {[%clk 0:01:49]}  Be7 {[%clk 0:00:48]} 21. Bc4 {[%clk 0:01:43]}  Rhd8 {[%clk 0:00:20]} 22. f5 {[%clk 0:01:43]}  Rd6 {[%clk 0:00:20]} 23. Bxe6+ {[%clk 0:01:37]}  Rxe6 {[%clk 0:00:21]} 24. fxe6+ {[%clk 0:01:37]}  Kxe6 {[%clk 0:00:21]} 25. Ra1 {[%clk 0:01:30]}  b5 {[%clk 0:00:20]} 26. c4 {[%clk 0:01:30]}  bxc4 {[%clk 0:00:18]} 27. bxc4 {[%clk 0:01:30]}  a4 {[%clk 0:00:18]} 28. Kd3 {[%clk 0:01:28]}  Bb4 {[%clk 0:00:17]} 29. c5 {[%clk 0:01:27]}  a3 {[%clk 0:00:15]} 30. Kc4 {[%clk 0:01:27]}  Bd2 {[%clk 0:00:11]} 31. Ra2 {[%clk 0:01:22]}  Bf4 {[%clk 0:00:11]} 32. h3 {[%clk 0:01:18]}  Bc7 {[%clk 0:00:10]} 33. Bc3 {[%clk 0:01:16]}  Ra4+ {[%clk 0:00:08]} 34. Kb5 {[%clk 0:01:11]}  Rxe4 {[%clk 0:00:08]} 35. Rxa3 {[%clk 0:01:12]}  Re3 {[%clk 0:00:08]} 36. Ra6+ {[%clk 0:01:12]}  Kf5 {[%clk 0:00:07]} 37. Bd4 {[%clk 0:01:09]}  Re4 {[%clk 0:00:06]} 38. g4+ {[%clk 0:01:00]}  Kg5 {[%clk 0:00:05]} 39. Ra7 {[%clk 0:00:57]}  Re7 {[%clk 0:00:00]} 40. Kc6 {[%clk 0:00:51]} 1-0


[Site "https://www.chess.com"]

[Event "Titled Tuesday Blitz May 23 Late 2023"]
[White "Guz, Ari"]
[Black "Einarsson, Halldor Gretar"]
[WhiteFideId "2825759"]
[BlackFideId "2300150"]
[WhiteElo "2205"]
[BlackElo "2110"]
[Result "1-0"]
[Round "07"]
[TimeControl "180+2"]
[Date "2023.05.23"]
[WhiteClock "0:00:50"]
[BlackClock "0:00:00"]

1. a4 {[%clk 0:03:00]}  Nf6 {[%clk 0:02:58]} 2. Ra3 {[%clk 0:02:53]}  g6 {[%clk 0:02:58]} 3. h4 {[%clk 0:02:53]}  Bg7 {[%clk 0:02:57]} 4. e3 {[%clk 0:02:52]}  c5 {[%clk 0:02:54]} 5. Be2 {[%clk 0:02:51]}  Nc6 {[%clk 0:02:53]} 6. h5 {[%clk 0:02:51]}  O-O {[%clk 0:02:35]} 7. hxg6 {[%clk 0:02:49]}  fxg6 {[%clk 0:02:34]} 8. Nf3 {[%clk 0:02:46]}  e5 {[%clk 0:02:30]} 9. d4 {[%clk 0:02:37]}  e4 {[%clk 0:02:24]} 10. Ng5 {[%clk 0:02:30]}  h6 {[%clk 0:02:16]} 11. Nh3 {[%clk 0:02:30]}  b6 {[%clk 0:01:38]} 12. dxc5 {[%clk 0:01:51]}  bxc5 {[%clk 0:01:37]} 13. Nc3 {[%clk 0:01:52]}  d5 {[%clk 0:01:36]} 14. Nf4 {[%clk 0:01:50]}  d4 {[%clk 0:01:29]} 15. exd4 {[%clk 0:01:50]}  cxd4 {[%clk 0:01:28]} 16. Nb5 {[%clk 0:01:50]}  Kh7 {[%clk 0:01:19]} 17. Nh3 {[%clk 0:01:45]}  e3 {[%clk 0:01:00]} 18. fxe3 {[%clk 0:01:35]}  Ne4 {[%clk 0:00:53]} 19. exd4 {[%clk 0:01:24]}  Qh4+ {[%clk 0:00:48]} 20. g3 {[%clk 0:01:23]}  Nxg3 {[%clk 0:00:44]} 21. Ng5+ {[%clk 0:01:23]}  Qxg5 {[%clk 0:00:39]} 22. Bxg5 {[%clk 0:01:22]}  Nxh1 {[%clk 0:00:36]} 23. Bf3 {[%clk 0:01:16]}  Bg4 {[%clk 0:00:23]} 24. Bxg4 {[%clk 0:00:55]}  Nf2 {[%clk 0:00:20]} 25. Qe2 {[%clk 0:00:54]}  Rae8 {[%clk 0:00:17]} 26. Re3 {[%clk 0:00:54]}  Rxe3 {[%clk 0:00:12]} 27. Bxe3 {[%clk 0:00:55]}  Nxg4 {[%clk 0:00:11]} 28. Qxg4 {[%clk 0:00:55]}  a6 {[%clk 0:00:10]} 29. Nd6 {[%clk 0:00:51]}  Rf6 {[%clk 0:00:08]} 30. Ne4 {[%clk 0:00:49]}  Rf5 {[%clk 0:00:07]} 31. c3 {[%clk 0:00:50]}  h5 {[%clk 0:00:05]} 32. Ng5+ {[%clk 0:00:49]}  Kg8 {[%clk 0:00:00]} 33. Qe4 {[%clk 0:00:50]} 1-0


[Site "https://www.chess.com"]

[Event "Titled Tuesday Blitz May 23 Late 2023"]
[White "Rodriguez Santiago, Jaime"]
[Black "Ibadov, Dashgyn"]
[WhiteFideId "3100898"]
[BlackFideId "24107514"]
[WhiteElo "2025"]
[BlackElo "2208"]
[Result "0-1"]
[Round "07"]
[TimeControl "180+2"]
[Date "2023.05.23"]
[WhiteClock "0:00:01"]
[BlackClock "0:00:12"]

1. d4 {[%clk 0:03:00]}  d5 {[%clk 0:02:58]} 2. c4 {[%clk 0:02:59]}  e6 {[%clk 0:02:58]} 3. Nc3 {[%clk 0:02:59]}  c6 {[%clk 0:02:58]} 4. cxd5 {[%clk 0:02:59]}  exd5 {[%clk 0:02:56]} 5. Bf4 {[%clk 0:02:58]}  Nf6 {[%clk 0:02:55]} 6. e3 {[%clk 0:02:57]}  Be7 {[%clk 0:02:47]} 7. Bd3 {[%clk 0:02:49]}  Bg4 {[%clk 0:02:46]} 8. Nge2 {[%clk 0:02:41]}  Nbd7 {[%clk 0:02:42]} 9. h3 {[%clk 0:02:39]}  Bh5 {[%clk 0:02:42]} 10. Qc2 {[%clk 0:02:38]}  Bg6 {[%clk 0:02:42]} 11. O-O {[%clk 0:02:30]}  Bxd3 {[%clk 0:02:41]} 12. Qxd3 {[%clk 0:02:29]}  O-O {[%clk 0:02:42]} 13. Rab1 {[%clk 0:02:27]}  Re8 {[%clk 0:02:40]} 14. b4 {[%clk 0:02:23]}  a6 {[%clk 0:02:39]} 15. a4 {[%clk 0:02:23]}  Nb6 {[%clk 0:02:28]} 16. b5 {[%clk 0:02:15]}  axb5 {[%clk 0:02:29]} 17. axb5 {[%clk 0:02:14]}  Nc4 {[%clk 0:02:27]} 18. bxc6 {[%clk 0:02:10]}  bxc6 {[%clk 0:02:28]} 19. Rfc1 {[%clk 0:02:02]}  Ra3 {[%clk 0:02:27]} 20. Qc2 {[%clk 0:01:49]}  h6 {[%clk 0:02:15]} 21. Rb3 {[%clk 0:01:38]}  Rxb3 {[%clk 0:01:43]} 22. Qxb3 {[%clk 0:01:37]}  Bd6 {[%clk 0:01:44]} 23. Qb7 {[%clk 0:01:28]}  Bxf4 {[%clk 0:01:42]} 24. Nxf4 {[%clk 0:01:28]}  Qd6 {[%clk 0:01:43]} 25. Nd3 {[%clk 0:01:21]}  Rb8 {[%clk 0:01:21]} 26. Qa7 {[%clk 0:01:15]}  Rb3 {[%clk 0:01:21]} 27. Nc5 {[%clk 0:01:12]}  Rb2 {[%clk 0:01:03]} 28. Nd1 {[%clk 0:00:49]}  Re2 {[%clk 0:00:42]} 29. Kf1 {[%clk 0:00:47]}  Rd2 {[%clk 0:00:41]} 30. Ke1 {[%clk 0:00:44]}  Rxd1+ {[%clk 0:00:14]} 31. Rxd1 {[%clk 0:00:38]}  Qh2 {[%clk 0:00:15]} 32. Qa8+ {[%clk 0:00:25]}  Kh7 {[%clk 0:00:14]} 33. Qxc6 {[%clk 0:00:25]}  Qxg2 {[%clk 0:00:14]} 34. Ke2 {[%clk 0:00:19]}  Qxh3 {[%clk 0:00:13]} 35. Nd3 {[%clk 0:00:15]}  Qg4+ {[%clk 0:00:11]} 36. Ke1 {[%clk 0:00:08]}  Ne4 {[%clk 0:00:10]} 37. Qxd5 {[%clk 0:00:04]}  Qg1+ {[%clk 0:00:11]} 38. Ke2 {[%clk 0:00:03]}  Nc3+ {[%clk 0:00:11]} 39. Kf3 {[%clk 0:00:02]}  Qxd1+ {[%clk 0:00:11]} 40. Kg2 {[%clk 0:00:01]}  Nxd5 {[%clk 0:00:12]} 41. Nf4 {[%clk 0:00:01]}  Nxf4+ {[%clk 0:00:11]} 42. exf4 {[%clk 0:00:01]}  Qxd4 {[%clk 0:00:12]} 0-1


[Site "https://www.chess.com"]